fUSD/lending_fUSD_20250823
["ID","MTS","AMOUNT","RATE_DAILY","PERIOD"]
[380990809,1755930651109,-400.0,0.00013698,2]
[380990810,1755930651123,-404.66014464,0.00013698,2]
[380990811,1755930651142,-400.0,0.00013698,2]
[380990812,1755930651155,-400.92078364,0.00013698,2]
[380990813,1755930651174,-774.36,0.00013698,2]
[380990814,1755930651187,-400.0,0.00013698,2]
[380990815,1755930651203,-744.18,0.00013698,2]
[380990816,1755930651219,-472.39,0.00013698,2]
[380990817,1755930651236,-400.0,0.00013698,2]
[380990818,1755930651251,-400.0,0.00013698,2]
[380990819,1755930651271,-400.0,0.00013698,2]
[380990820,1755930651286,-541.28,0.00013698,2]
[380990821,1755930651301,-791.97,0.00013698,2]
[380990822,1755930651316,-411.91,0.00013698,2]
[380990823,1755930651332,-976.58,0.00013698,2]
[380990824,1755930651348,-247.43436194,0.00013698,2]
[380990825,1755930651363,-400.0,0.00013698,2]
[380990826,1755930651380,-401.52045555,0.00013698,2]
[380990827,1755930651395,-400.0,0.00013698,2]
[380990828,1755930651418,-400.0,0.00013698,2]
[380990829,1755930651434,-402.15539614,0.00013698,2]
[380990830,1755930651449,-621.35,0.00013698,2]
[380990831,1755930651464,-690.96,0.00013698,2]
[380990832,1755930651479,-602.8,0.00013698,2]
[380990833,1755930651494,-905.63,0.00013698,2]
[380990834,1755930651509,-433.28,0.00013698,2]
[380990835,1755930651524,-893.46,0.00013698,2]
[380990836,1755930651539,-400.0,0.00013698,2]
[380990837,1755930651554,-400.0,0.00013698,2]
[380990838,1755930651570,-400.0,0.00013698,2]
[380990839,1755930651585,-664.51,0.00013698,2]
[380990840,1755930651602,-400.0,0.00013698,2]
[380990841,1755930651616,-400.0,0.00013698,2]
[380990842,1755930651632,-400.0,0.00013698,2]
[380990843,1755930651647,-400.0,0.00013698,2]
[380990844,1755930651663,-610.58,0.00013698,2]
[380990845,1755930651677,-400.0,0.00013698,2]
[380990846,1755930651691,-400.0,0.00013698,2]
[380990847,1755930651707,-975.83,0.00013698,2]
[380990848,1755930651722,-400.0,0.00013698,2]
[380990849,1755930651737,-520.12,0.00013698,2]
[380990850,1755930651753,-500.0,0.00013698,2]
[380990851,1755930651769,-567.16,0.00013698,2]
[380990852,1755930651784,-500.0,0.00013698,2]
[380990853,1755930651799,-176.8670138,0.00013698,2]
[380990854,1755930651814,-437.71,0.00013698,2]
[380990855,1755930651829,-542.81974109,0.00013698,2]
[380990856,1755930651845,-400.0,0.00013698,2]
[380990857,1755930651860,-591.76,0.00013698,2]
[380990858,1755930651876,-629.55,0.00013698,2]
[380990859,1755930651892,-401.43504406,0.00013698,2]
[380990860,1755930651908,-400.0,0.00013698,2]
[380990861,1755930651923,-976.57,0.00013698,2]
[380990862,1755930651939,-707.96,0.00013698,2]
[380990863,1755930651954,-400.0,0.00013698,2]
[380990864,1755930651969,-548.63,0.00013698,2]
[380990865,1755930651984,-696.63,0.00013698,2]
[380990866,1755930651999,-548.08,0.00013698,2]
[380990867,1755930652014,-400.0,0.00013698,2]
[380990868,1755930652029,-421.64,0.00013698,2]
[380990869,1755930652044,-1327.74,0.00013698,2]
[380990870,1755930652060,-400.0,0.00013698,2]
[380990871,1755930652076,-408.25,0.00013698,2]
[380990872,1755930652091,-666.95,0.00013698,2]
[380990873,1755930652107,-400.0,0.00013698,2]
[380990874,1755930652123,-400.0,0.00013698,2]
[380990875,1755930652139,-400.0,0.00013698,2]
[380990876,1755930652154,-400.0,0.00013698,2]
[380990877,1755930652170,-400.0,0.00013698,2]
[380990878,1755930652185,-401.39751657,0.00013698,2]
[380990879,1755930652201,-400.0,0.00013698,2]
[380990880,1755930652217,-478.81,0.00013698,2]
[380990881,1755930652232,-400.0,0.00013698,2]
[380990882,1755930652247,-400.0,0.00013698,2]
[380990883,1755930652264,-475.87,0.00013698,2]
[380990884,1755930652281,-752.44,0.00013698,2]
[380990885,1755930652296,-442.44635651,0.00013698,2]
[380990886,1755930652312,-553.32,0.00013698,2]
[380990887,1755930652328,-414.48,0.00013698,2]
[380990888,1755930652345,-598.85,0.00013698,2]
[380990889,1755930652360,-400.0,0.00013698,2]
[380990890,1755930652376,-400.0,0.00013698,2]
[380990891,1755930652390,-400.0,0.00013698,2]
[380990892,1755930652406,-400.0,0.00013698,2]
[380990893,1755930652421,-401.28145119,0.00013698,2]
[380990894,1755930652436,-400.0,0.00013698,2]
[380990895,1755930652451,-418.3,0.00013698,2]
[380990896,1755930652465,-400.0,0.00013698,2]
[380990897,1755930652480,-977.36,0.00013698,2]
[380990898,1755930652495,-558.79,0.00013698,2]
[380990899,1755930652510,-590.73,0.00013698,2]
[380990900,1755930652525,-400.0,0.00013698,2]
[380990901,1755930652541,-400.0,0.00013698,2]
[380990902,1755930652556,-400.0,0.00013698,2]
[380990903,1755930652571,-400.0,0.00013698,2]
[380990904,1755930652586,-400.0,0.00013698,2]
[380990905,1755930652601,-401.36882483,0.00013698,2]
[380990906,1755930652616,-400.0,0.00013698,2]
[380990907,1755930652629,-524.60835515,0.00013698,2]
[380990908,1755930652644,-400.0,0.00013698,2]
[380990909,1755930652659,-400.0,0.00013698,2]
[380990910,1755930652674,-400.0,0.00013698,2]
[380990911,1755930652688,-460.0,0.00013698,2]
[380990912,1755930652703,-400.95166667,0.00013698,2]
[380990913,1755930652718,-400.0,0.00013698,2]
[380990914,1755930652733,-161.460914,0.00013698,2]
[380990915,1755930652747,-400.0,0.00013698,2]
[380990916,1755930652762,-400.0,0.00013698,2]
[380990917,1755930652777,-1058.0,0.00013698,2]
[380990918,1755930652791,-595.73,0.00013698,2]
[380990919,1755930652806,-400.0,0.00013698,2]
[380990920,1755930652824,-792.12,0.00013698,2]
[380990921,1755930652838,-490.78,0.00013698,2]
[380990922,1755930652853,-400.0,0.00013698,2]
[380990923,1755930652868,-400.0,0.00013698,2]
[380990924,1755930652883,-400.0,0.00013698,2]
[380990925,1755930652898,-400.0,0.00013698,2]
[380990926,1755930652913,-400.0,0.00013698,2]
[380990927,1755930652928,-400.0,0.00013698,2]
[380990928,1755930652941,-664.29,0.00013698,2]
[380990929,1755930652951,-500.0,0.00013698,2]
[380990930,1755930652960,-500.0,0.00013698,2]
[380990931,1755930652970,-500.0,0.00013698,2]
[380990932,1755930652979,-506.40091799,0.00013698,2]
[380990933,1755930652988,-400.0,0.00013698,2]
[380990934,1755930652997,-400.0,0.00013698,2]
[380990935,1755930653007,-400.0,0.00013698,2]
[380990936,1755930653017,-603.04,0.00013698,2]
[380990937,1755930653027,-400.0,0.00013698,2]
[380990938,1755930653037,-894.08,0.00013698,2]
[380990939,1755930653046,-419.15,0.00013698,2]
[380990940,1755930653056,-400.0,0.00013698,2]
[380990941,1755930653066,-400.0,0.00013698,2]
[380990942,1755930653076,-400.15885516,0.00013698,2]
[380990943,1755930653087,-400.0,0.00013698,2]
[380990944,1755930653097,-538.29,0.00013698,2]
[380990945,1755930653107,-400.0,0.00013698,2]
[380990946,1755930653117,-400.0,0.00013698,2]
[380990947,1755930653589,-400.0,0.00013698,2]
[380990948,1755930653632,-855.49,0.00013698,2]
[380990949,1755930653661,-400.0,0.00013698,2]
[380990950,1755930653672,-400.0,0.00013698,2]
[380990951,1755930653681,-423.93,0.00013698,2]
[380990952,1755930653691,-400.0,0.00013698,2]
[380990953,1755930653701,-400.23788978,0.00013698,2]
[380990954,1755930653710,-400.0,0.00013698,2]
[380990955,1755930653720,-509.54,0.00013698,2]
[380990956,1755930653729,-633.58,0.00013698,2]
[380990957,1755930653739,-400.0,0.00013698,2]
[380990958,1755930653749,-400.0,0.00013698,2]
[380990959,1755930653758,-400.0,0.00013698,2]
[380990960,1755930653767,-3166.9,0.00013698,2]
[380990961,1755930653777,-400.0,0.00013698,2]
[380990962,1755930653787,-400.0,0.00013698,2]
[380990963,1755930653796,-532.83,0.00013698,2]
[380990964,1755930653805,-400.0,0.00013698,2]
[380990965,1755930653815,-462.81,0.00013698,2]
[380990966,1755930653824,-487.36,0.00013698,2]
[380990967,1755930653834,-401.71424938,0.00013698,2]
[380990968,1755930653843,-712.9,0.00013698,2]
[380990969,1755930653853,-400.0,0.00013698,2]
[380990970,1755930653864,-571.73,0.00013698,2]
[380990971,1755930653874,-400.36789971,0.00013698,2]
[380990972,1755930653884,-761.19,0.00013698,2]
[380990973,1755930653894,-990.26,0.00013698,2]
[380990974,1755930653903,-781.23,0.00013698,2]
[380990975,1755930653913,-400.0,0.00013698,2]
[380990976,1755930653923,-400.0,0.00013698,2]
[380990977,1755930653932,-400.0,0.00013698,2]
[380990978,1755930653943,-400.0,0.00013698,2]
[380990979,1755930653954,-713.0,0.00013698,2]
[380990980,1755930653964,-400.0,0.00013698,2]
[380990981,1755930653973,-400.0,0.00013698,2]
[380990982,1755930653983,-594.22,0.00013698,2]
[380990983,1755930653993,-400.0,0.00013698,2]
[380990984,1755930654002,-736.28,0.00013698,2]
[380990985,1755930654011,-400.0,0.00013698,2]
[380990986,1755930654021,-400.0,0.00013698,2]
[380990987,1755930654033,-715.03,0.00013698,2]
[380990988,1755930654043,-400.0,0.00013698,2]
[380990989,1755930654053,-441.42,0.00013698,2]
[380990990,1755930654063,-931.43,0.00013698,2]
[380990991,1755930654073,-942.63,0.00013698,2]
[380990992,1755930654082,-400.0,0.00013698,2]
[380990993,1755930654092,-602.5,0.00013698,2]
[380990994,1755930654101,-649.04,0.00013698,2]
[380990995,1755930654110,-400.0,0.00013698,2]
[380990996,1755930654120,-553.23,0.00013698,2]
[380990997,1755930654129,-400.0,0.00013698,2]
[380990998,1755930654140,-720.71,0.00013698,2]
[380990999,1755930654150,-400.0,0.00013698,2]
[380991000,1755930654159,-400.4930412,0.00013698,2]
[380991001,1755930654168,-419.63,0.00013698,2]
[380991002,1755930654178,-624.59,0.00013698,2]
[380991003,1755930654188,-797.24,0.00013698,2]
[380991004,1755930654197,-400.0,0.00013698,2]
[380991005,1755930654207,-400.0,0.00013698,2]
[380991006,1755930654217,-405.03295601,0.00013698,2]
[380991007,1755930654226,-587.49,0.00013698,2]
[380991008,1755930654236,-2151.45,0.00013698,2]
[380991009,1755930654245,-400.0,0.00013698,2]
[380991010,1755930654255,-400.0,0.00013698,2]
[380991011,1755930654268,-400.0,0.00013698,2]
[380991012,1755930654278,-400.0,0.00013698,2]
[380991013,1755930654288,-400.0,0.00013698,2]
[380991014,1755930654297,-690.44,0.00013698,2]
[380991015,1755930654307,-692.13,0.00013698,2]
[380991016,1755930654318,-697.05,0.00013698,2]
[380991017,1755930654327,-731.85,0.00013698,2]
[380991018,1755930654338,-400.0,0.00013698,2]
[380991019,1755930654347,-425.81062427,0.00013698,2]
[380991020,1755930654357,-400.0,0.00013698,2]
[380991021,1755930654367,-874.21,0.00013698,2]
[380991022,1755930654377,-542.89,0.00013698,2]
[380991023,1755930654387,-400.0,0.00013698,2]
[380991024,1755930654397,-416.02,0.00013698,2]
[380991025,1755930654406,-513.06,0.00013698,2]
[380991026,1755930654416,-460.59,0.00013698,2]
[380991027,1755930654426,-400.0,0.00013698,2]
[380991028,1755930654436,-400.0,0.00013698,2]
[380991029,1755930654445,-764.63,0.00013698,2]
[380991030,1755930654454,-400.0,0.00013698,2]
[380991031,1755930654463,-512.62,0.00013698,2]
[380991032,1755930654473,-400.0,0.00013698,2]
[380991033,1755930654481,-436.53,0.00013698,2]
[380991034,1755930654491,-400.0,0.00013698,2]
[380991035,1755930654499,-692.03,0.00013698,2]
[380991036,1755930654509,-418.83,0.00013698,2]
[380991037,1755930654518,-400.0,0.00013698,2]
[380991038,1755930654527,-400.0,0.00013698,2]
[380991039,1755930654537,-1343.83,0.00013698,2]
[380991040,1755930654546,-400.0,0.00013698,2]
[380991041,1755930654555,-400.70412661,0.00013698,2]
[380991042,1755930654565,-617.12,0.00013698,2]
[380991043,1755930654574,-400.0,0.00013698,2]
[380991044,1755930654584,-502.60787391,0.00013698,2]
[380991045,1755930654594,-400.0,0.00013698,2]
[380991046,1755930654603,-764.95,0.00013698,2]
[380991047,1755930654613,-400.0,0.00013698,2]
[380991048,1755930654623,-400.0,0.00013698,2]
[380991049,1755930654632,-704.81,0.00013698,2]
[380991050,1755930654642,-400.0,0.00013698,2]
[380991051,1755930654651,-657.79,0.00013698,2]
[380991052,1755930654661,-400.0,0.00013698,2]
[380991053,1755930654671,-1027.02,0.00013698,2]
[380991054,1755930654680,-677.4,0.00013698,2]
[380991055,1755930654690,-400.0,0.00013698,2]
[380991056,1755930654699,-400.0,0.00013698,2]
[380991057,1755930654709,-400.0,0.00013698,2]
[380991058,1755930654719,-400.0,0.00013698,2]
[380991059,1755930654728,-401.62065444,0.00013698,2]
[380991060,1755930654738,-400.0,0.00013698,2]
[380991061,1755930654747,-400.0,0.00013698,2]
[380991062,1755930654757,-400.0,0.00013698,2]
[380991063,1755930654766,-400.0,0.00013698,2]
[380991064,1755930654775,-402.20780042,0.00013698,2]
[380991065,1755930654785,-400.0,0.00013698,2]
[380991066,1755930654795,-400.0,0.00013698,2]
[380991067,1755930654804,-817.2,0.00013698,2]
[380991068,1755930654814,-400.0,0.00013698,2]
[380991069,1755930654823,-1019.45,0.00013698,2]
[380991070,1755930654832,-500.32,0.00013698,2]
[380991071,1755930654841,-400.0,0.00013698,2]
[380991072,1755930654851,-400.0,0.00013698,2]
[380991073,1755930654860,-554.8,0.00013698,2]
[380991074,1755930654871,-400.0,0.00013698,2]
[380991075,1755930654882,-632.54,0.00013698,2]
[380991076,1755930654892,-624.73,0.00013698,2]
[380991077,1755930654902,-739.16,0.00013698,2]
[380991078,1755930654912,-583.62,0.00013698,2]
[380991079,1755930654921,-400.22460611,0.00013698,2]
[380991080,1755930654931,-853.25,0.00013698,2]
[380991081,1755930654940,-400.0,0.00013698,2]
[380991082,1755930654950,-400.0,0.00013698,2]
[380991083,1755930654959,-12873.11,0.00013698,2]
[380991084,1755930654969,-400.0,0.00013698,2]
[380991085,1755930654979,-400.0,0.00013698,2]
[380991086,1755930654988,-990.21,0.00013698,2]
[380991087,1755930654997,-400.0,0.00013698,2]
[380991088,1755930655006,-400.0,0.00013698,2]
[380991089,1755930655016,-400.0,0.00013698,2]
[380991090,1755930655025,-400.0,0.00013698,2]
[380991091,1755930655035,-588.98,0.00013698,2]
[380991092,1755930655045,-897.81,0.00013698,2]
[380991093,1755930655054,-799.46,0.00013698,2]
[380991094,1755930655064,-646.95,0.00013698,2]
[380991095,1755930655073,-418.63,0.00013698,2]
[380991096,1755930655083,-987.03,0.00013698,2]
[380991097,1755930655093,-453.72,0.00013698,2]
[380991098,1755930655102,-400.0,0.00013698,2]
[380991099,1755930655111,-435.65,0.00013698,2]
[380991100,1755930655122,-558.93,0.00013698,2]
[380991101,1755930655132,-421.41,0.00013698,2]
[380991102,1755930655142,-400.0,0.00013698,2]
[380991103,1755930655151,-400.0,0.00013698,2]
[380991104,1755930655161,-400.0,0.00013698,2]
[380991105,1755930655170,-324.80658153,0.00013698,2]
[380991106,1755930655179,-801.09,0.00013698,2]
[380991107,1755930655189,-940.82,0.00013698,2]
[380991108,1755930655199,-400.0,0.00013698,2]
[380991109,1755930655208,-401.458655,0.00013698,2]
[380991110,1755930655217,-412.73065316,0.00013698,2]
[380991111,1755930655227,-400.0,0.00013698,2]
[380991112,1755930655236,-738.24,0.00013698,2]
[380991113,1755930655246,-1045.55,0.00013698,2]
[380991114,1755930655255,-400.0,0.00013698,2]
[380991115,1755930655267,-278.50271753,0.00013698,2]
[380991116,1755930655277,-400.0,0.00013698,2]
[380991117,1755930655286,-1129.74,0.00013698,2]
[380991118,1755930655296,-941.53,0.00013698,2]
[380991119,1755930655306,-1172.0,0.00013698,2]
[380991120,1755930655317,-400.0,0.00013698,2]
[380991121,1755930655326,-1384.75,0.00013698,2]
[380991122,1755930655336,-400.0,0.00013698,2]
[380991123,1755930655347,-419.05,0.00013698,2]
[380991124,1755930655356,-400.69164127,0.00013698,2]
[380991125,1755930655366,-740.0,0.00013698,2]
[380991126,1755930655376,-831.91,0.00013698,2]
[380991127,1755930655386,-778.45,0.00013698,2]
[380991128,1755930655396,-400.0,0.00013698,2]
[380991129,1755930655406,-400.0,0.00013698,2]
[380991130,1755930655416,-1047.67,0.00013698,2]
[380991131,1755930655426,-401.21868407,0.00013698,2]
[380991132,1755930655435,-510.38376983,0.00013698,2]
[380991133,1755930655445,-400.0,0.00013698,2]
[380991134,1755930655455,-407.06,0.00013698,2]
[380991135,1755930655464,-400.0,0.00013698,2]
[380991136,1755930655474,-640.87,0.00013698,2]
[380991137,1755930655483,-400.0,0.00013698,2]
[380991138,1755930655493,-400.0,0.00013698,2]
[380991139,1755930655502,-406.8,0.00013698,2]
[380991140,1755930655512,-400.0,0.00013698,2]
[380991141,1755930655522,-620.0,0.00013698,2]
[380991142,1755930655531,-400.0,0.00013698,2]
[380991143,1755930655540,-566.33,0.00013698,2]
[380991144,1755930655550,-400.0,0.00013698,2]
[380991145,1755930655559,-400.0,0.00013698,2]
[380991146,1755930655569,-1110.17,0.00013698,2]
[380991147,1755930655578,-428.51,0.00013698,2]
[380991148,1755930655588,-400.0,0.00013698,2]
[380991149,1755930655597,-400.0,0.00013698,2]
[380991150,1755930655607,-1114.49,0.00013698,2]
[380991151,1755930655616,-716.98,0.00013698,2]
[380991152,1755930655626,-643.19,0.00013698,2]
[380991153,1755930655636,-400.0,0.00013698,2]
[380991154,1755930655645,-1209.16,0.00013698,2]
[380991155,1755930655655,-400.0,0.00013698,2]
[380991156,1755930655664,-458.89,0.00013698,2]
[380991157,1755930655673,-400.0,0.00013698,2]
[380991158,1755930655682,-400.0,0.00013698,2]
[380991159,1755930655692,-626.95,0.00013698,2]
[380991160,1755930655701,-401.35194902,0.00013698,2]
[380991161,1755930655711,-932.5,0.00013698,2]
[380991162,1755930655721,-893.99,0.00013698,2]
[380991163,1755930655731,-400.0,0.00013698,2]
[380991164,1755930655740,-344.27004836,0.00013698,2]
[380991165,1755930655750,-640.9,0.00013698,2]
[380991166,1755930655759,-401.76906955,0.00013698,2]
[380991167,1755930655769,-400.0,0.00013698,2]
[380991168,1755930655779,-1077.14,0.00013698,2]
[380991169,1755930655789,-400.0,0.00013698,2]
[380991170,1755930655799,-400.0,0.00013698,2]
[380991171,1755930655809,-400.0,0.00013698,2]
[380991172,1755930655819,-1129.31,0.00013698,2]
[380991173,1755930655829,-928.82,0.00013698,2]
[380991174,1755930655839,-897.5,0.00013698,2]
[380991175,1755930655848,-448.11173769,0.00013698,2]
[380991176,1755930655858,-985.74,0.00013698,2]
[380991177,1755930655867,-584.91,0.00013698,2]
[380991178,1755930655877,-681.69,0.00013698,2]
[380991179,1755930655889,-180.85462609,0.00013698,2]
[380991180,1755930655898,-400.0,0.00013698,2]
[380991181,1755930655908,-672.3,0.00013698,2]
[380991182,1755930655918,-1594.64,0.00013698,2]
[380991183,1755930655928,-400.0,0.00013698,2]
[380991184,1755930655938,-400.0,0.00013698,2]
[380991185,1755930655947,-400.0,0.00013698,2]
[380991186,1755930655957,-486.38,0.00013698,2]
[380991187,1755930655967,-482.01,0.00013698,2]
[380991188,1755930655976,-705.27,0.00013698,2]
[380991189,1755930655987,-801.05,0.00013698,2]
[380991190,1755930655997,-649.64,0.00013698,2]
[380991191,1755930656007,-611.51,0.00013698,2]
[380991192,1755930656017,-475.16,0.00013698,2]
[380991193,1755930656027,-504.22,0.00013698,2]
[380991194,1755930656037,-400.0,0.00013698,2]
[380991195,1755930656046,-400.0,0.00013698,2]
[380991196,1755930656056,-401.98933166,0.00013698,2]
[380991197,1755930656065,-810.53,0.00013698,2]
[380991198,1755930656076,-753.61,0.00013698,2]
[380991199,1755930656087,-2291.05,0.00013698,2]
[380991200,1755930656096,-400.0,0.00013698,2]
[380991201,1755930656106,-400.0,0.00013698,2]
[380991202,1755930656116,-667.17,0.00013698,2]
[380991203,1755930656127,-401.39200532,0.00013698,2]
[380991204,1755930656136,-508.92,0.00013698,2]
[380991205,1755930656146,-1407.45,0.00013698,2]
[380991206,1755930656156,-446.02,0.00013698,2]
[380991207,1755930656165,-400.0,0.00013698,2]
[380991208,1755930656175,-696.36,0.00013698,2]
[380991209,1755930656185,-616.47,0.00013698,2]
[380991210,1755930656194,-400.0,0.00013698,2]
[380991211,1755930656204,-453.80575837,0.00013698,2]
[380991212,1755930656214,-881.54,0.00013698,2]
[380991213,1755930656223,-855.52,0.00013698,2]
[380991214,1755930656234,-400.0,0.00013698,2]
[380991215,1755930656243,-400.0,0.00013698,2]
[380991216,1755930656253,-1014.43,0.00013698,2]
[380991217,1755930656264,-400.0,0.00013698,2]
[380991218,1755930656275,-400.0,0.00013698,2]
[380991219,1755930656285,-1284.58,0.00013698,2]
[380991220,1755930656295,-866.11,0.00013698,2]
[380991221,1755930656305,-440.11,0.00013698,2]
[380991222,1755930656315,-729.3,0.00013698,2]
[380991223,1755930656325,-400.0,0.00013698,2]
[380991224,1755930656334,-477.59,0.00013698,2]
[380991225,1755930656344,-400.0,0.00013698,2]
[380991226,1755930656355,-400.0,0.00013698,2]
[380991227,1755930656364,-656.46,0.00013698,2]
[380991228,1755930656374,-772.76,0.00013698,2]
[380991229,1755930656384,-520.35,0.00013698,2]
[380991230,1755930656394,-400.0,0.00013698,2]
[380991231,1755930656403,-400.98356617,0.00013698,2]
[380991232,1755930656413,-1238.33,0.00013698,2]
[380991233,1755930656423,-400.0,0.00013698,2]
[380991234,1755930656433,-400.0,0.00013698,2]
[380991235,1755930656443,-400.0,0.00013698,2]
[380991236,1755930656452,-400.0,0.00013698,2]
[380991237,1755930656462,-892.57,0.00013698,2]
[380991238,1755930656471,-418.56955564,0.00013698,2]
[380991239,1755930656481,-400.0,0.00013698,2]
[380991240,1755930656490,-400.0,0.00013698,2]
[380991241,1755930656500,-400.0,0.00013698,2]
[380991242,1755930656511,-600.2,0.00013698,2]
[380991243,1755930656521,-736.8,0.00013698,2]
[380991244,1755930656531,-400.0,0.00013698,2]
[380991245,1755930656541,-602.88,0.00013698,2]
[380991246,1755930656551,-590.02,0.00013698,2]
[380991247,1755930656561,-1076.13,0.00013698,2]
[380991248,1755930656570,-400.0,0.00013698,2]
[380991249,1755930656580,-401.71088334,0.00013698,2]
[380991250,1755930656589,-313.98544454,0.00013698,2]
[380991251,1755930656599,-400.0,0.00013698,2]
[380991252,1755930656608,-1141.99,0.00013698,2]
[380991253,1755930656618,-400.0,0.00013698,2]
[380991254,1755930656629,-451.08,0.00013698,2]
[380991255,1755930656638,-562.1,0.00013698,2]
[380991256,1755930656863,-400.0,0.00013698,2]
[380991257,1755930656874,-573.5,0.00013698,2]
[380991258,1755930656884,-821.55,0.00013698,2]
[380991259,1755930656894,-1096.32,0.00013698,2]
[380991260,1755930656904,-400.0,0.00013698,2]
[380991261,1755930656913,-463.18,0.00013698,2]
[380991262,1755930656923,-401.98967901,0.00013698,2]
[380991263,1755930656933,-401.02247506,0.00013698,2]
[380991264,1755930656943,-1117.58,0.00013698,2]
[380991265,1755930656953,-624.58,0.00013698,2]
[380991266,1755930656962,-1352.51,0.00013698,2]
[380991267,1755930656972,-400.0,0.00013698,2]
[380991268,1755930656981,-400.0,0.00013698,2]
[380991269,1755930656991,-1337.58,0.00013698,2]
[380991270,1755930657000,-263.19238453,0.00013698,2]
[380991271,1755930657010,-1340.25,0.00013698,2]
[380991272,1755930657019,-930.86,0.00013698,2]
[380991273,1755930657029,-491.34,0.00013698,2]
[380991274,1755930657039,-856.61,0.00013698,2]
[380991275,1755930657048,-400.0,0.00013698,2]
[380991276,1755930657058,-871.98,0.00013698,2]
[380991277,1755930657067,-546.89,0.00013698,2]
[380991278,1755930657077,-734.61,0.00013698,2]
[380991279,1755930657087,-402.26000532,0.00013698,2]
[380991280,1755930657097,-400.0,0.00013698,2]
[380991281,1755930657106,-1287.92,0.00013698,2]
[380991282,1755930657116,-1082.98,0.00013698,2]
[380991283,1755930657126,-944.89,0.00013698,2]
[380991284,1755930657135,-802.48,0.00013698,2]
[380991285,1755930657145,-400.0,0.00013698,2]
[380991286,1755930657154,-500.0,0.00013698,2]
[380991287,1755930657164,-400.0,0.00013698,2]
[380991288,1755930657173,-493.59,0.00013698,2]
[380991289,1755930657183,-400.0,0.00013698,2]
[380991290,1755930657193,-411.6,0.00013698,2]
[380991291,1755930657203,-400.0,0.00013698,2]
[380991292,1755930657213,-794.21,0.00013698,2]
[380991293,1755930657222,-548.11,0.00013698,2]
[380991294,1755930657232,-590.93,0.00013698,2]
[380991295,1755930657242,-445.1,0.00013698,2]
[380991296,1755930657252,-581.6,0.00013698,2]
[380991297,1755930657262,-1006.63,0.00013698,2]
[380991298,1755930657274,-400.0,0.00013698,2]
[380991299,1755930657284,-400.85106037,0.00013698,2]
[380991300,1755930657294,-1523.05,0.00013698,2]
[380991301,1755930657304,-400.0,0.00013698,2]
[380991302,1755930657315,-567.41,0.00013698,2]
[380991303,1755930657325,-454.19,0.00013698,2]
[380991304,1755930657335,-540.12,0.00013698,2]
[380991305,1755930657344,-541.18,0.00013698,2]
[380991306,1755930657355,-1038.57,0.00013698,2]
[380991307,1755930657365,-400.0,0.00013698,2]
[380991308,1755930657375,-760.57,0.00013698,2]